[Event "GER-chT Youth Countries 2020"]
[Site "Berlin"]
[Date "2020.10.04"]
[Round "7"]
[White "Middendorf, Sven-Jonas"]
[Black "Goepfert, Christian"]
[Result "1-0"]
[ECO "C87"]
[WhiteElo "1355"]
[BlackElo "1603"]
[Annotator "NA"]
[PlyCount "55"]
[EventDate "2020.09.30"]
[EventType "team-tourn"]
[EventRounds "7"]
[EventCountry "GER"]
[SourceTitle "playchess.com"]
[Source "ChessBase"]
[SourceQuality "1"]
[TimeControl "30/5400+30:0"]

1. e4 {[%emt 0:00:00]} e5 {[%emt 0:00:00]} 2. Nf3 {[%emt 0:00:00]} Nc6 {[%emt 0:00:00]} 3. Bb5 {[%emt 0:00:00]} a6 {[%emt 0:00:26]} 4. Ba4 {[%emt 0:00:00]} d6 {[%emt 0:00:24]} 5. O-O {[%emt 0:00:08]} Nf6 {[%emt 0:01:14]} 6. Re1 {[%emt 0:00:27]} Be7 {[%emt 0:00:45]} 7. c3 {[%emt 0:01:20]} O-O {[%emt 0:05:58]} 8. h3 {[%emt 0:00:44]} b5 {[%emt 0:02:25]} 9. Bc2 {[%emt 0:01:19]} Bb7 {[%emt 0:00:41]} 10. d4 {[%emt 0:05:49]} exd4 {[%emt 0:03:11]} 11. cxd4 {[%emt 0:08:37]} Nb4 {[%emt 0:01:04]} 12. Bb3 {[%emt 0:05:58]} c5 {[%emt 0:03:36]} 13. a3 {[%emt 0:10:29]} Nc6 {[%emt 0:00:26]} 14. Nc3 {[%emt 0:10:53]} Qb6 {[%emt 0:18:19]} 15. Nd5 {[%emt 0:01:08]} Qd8 {[%emt 0:01:42]} 16. Nxe7+ {[%emt 0:04:22]} Qxe7 {[%emt 0:01:29]} 17. e5 {[%emt 0:04:40]} Ne8 {[%emt 0:02:16]} 18. Bg5 {[%emt 0:02:50]} Qc7 {[%emt 0:01:12]} 19. exd6 {[%emt 0:09:07]} Qxd6 {[%emt 0:01:00]} 20. d5 {[%emt 0:00:23]} Nc7 {[%emt 0:03:01]} 21. dxc6 {[%emt 0:01:10]} Qxc6 {[%emt 0:00:33]} 22. Bc2 {[%emt 0:02:05]} Rfe8 {[%emt 0:00:31]} 23. Qd3 {[%emt 0:04:44]} g6 {[%emt 0:00:52]} 24. Rxe8+ {[%emt 0:01:32]} Rxe8 {[%emt 0:00:06]} 25. Re1 {[%emt 0:01:08]} Rxe1+ {[%emt 0:00:28]} 26. Nxe1 {[%emt 0:00:08]} Ne6 {[%emt 0:00:37]} 27. Bf6 {[%emt 0:02:34]} h6 {[%emt 0:00:46]} 28. Qe3 {[%emt 0:04:40]} 1-0

[Event "GER-chT Youth Countries 2020"]
[Site "Berlin"]
[Date "2020.10.04"]
[Round "7"]
[White "Bako, Evelin"]
[Black "Wilmink, Anna"]
[Result "1-0"]
[ECO "B38"]
[WhiteElo "1192"]
[BlackElo "1608"]
[Annotator "NA"]
[PlyCount "137"]
[EventDate "2020.09.30"]
[EventType "team-tourn"]
[EventRounds "7"]
[EventCountry "GER"]
[SourceTitle "playchess.com"]
[Source "ChessBase"]
[SourceQuality "1"]
[TimeControl "30/5400+30:0"]

1. e4 {[%emt 0:00:00]} c5 {[%emt 0:00:00]} 2. Nf3 {[%emt 0:00:00]} Nc6 {[%emt 0:00:00]} 3. d4 {[%emt 0:00:02]} cxd4 {[%emt 0:00:00]} 4. Nxd4 g6 {[%emt 0:00:08]} 5. c4 {[%emt 0:00:55]} Bg7 {[%emt 0:00:44]} 6. Be3 {[%emt 0:00:34]} Nf6 {[%emt 0:00:36]} 7. Nc3 {[%emt 0:00:38]} O-O {[%emt 0:00:16]} 8. Be2 {[%emt 0:00:22]} d6 {[%emt 0:00:46]} 9. f3 {[%emt 0:03:31]} Nd7 {[%emt 0:01:02]} 10. Qd2 {[%emt 0:02:36]} Nc5 {[%emt 0:06:58]} 11. O-O-O {[%emt 0:01:46]} Bd7 12. Kb1 {[%emt 0:01:29]} a6 {[%emt 0:04:08]} 13. h4 {[%emt 0:00:23]} Nxd4 {[%emt 0:08:33]} 14. Bxd4 {[%emt 0:01:36]} Ne6 {[%emt 0:01:54]} 15. Bxg7 {[%emt 0:02:27]} Kxg7 {[%emt 0:03:13]} 16. e5 {[%emt 0:02:47]} Bc6 {[%emt 0:01:25]} 17. exd6 {[%emt 0:01:24]} exd6 {[%emt 0:01:47]} 18. Qxd6 {[%emt 0:18:33]} Qa5 19. h5 {[%emt 0:04:07]} gxh5 {[%emt 0:07:47]} 20. Qg3+ {[%emt 0:02:54]} Kh8 {[%emt 0:10:48]} 21. Qh4 {[%emt 0:07:47]} Rae8 {[%emt 0:08:27]} 22. f4 {[%emt 0:02:13]} Ng7 {[%emt 0:07:36]} 23. Rh2 {[%emt 0:11:12]} Re6 24. g4 {[%emt 0:01:25]} Be8 {[%emt 0:07:52]} 25. f5 {[%emt 0:04:16]} Re3 {[%emt 0:03:35]} 26. Nd5 {[%emt 0:01:18]} Re4 27. f6 {[%emt 0:01:20]} Rg8 {[%emt 0:05:43]} 28. fxg7+ {[%emt 0:00:30]} Rxg7 29. Nf6 {[%emt 0:04:15]} Re6 {[%emt 0:01:53]} 30. Nxe8 {[%emt 0:00:30]} Rxe8 {[%emt 0:01:55]} 31. Rd5 {[%emt 1:34:56]} Qb6 {[%emt 1:31:32]} 32. c5 {[%emt 0:01:46]} Qc6 {[%emt 0:02:41]} 33. Rxh5 {[%emt 0:04:19]} Qe4+ {[%emt 0:01:27]} 34. Ka1 {[%emt 0:03:23]} Qc2 {[%emt 0:04:08]} 35. Qe1 {[%emt 0:02:21]} f6 {[%emt 0:03:21]} 36. Qd1 {[%emt 0:01:35]} Qg6 {[%emt 0:02:53]} 37. Bd3 {[%emt 0:00:30]} Rd8 {[%emt 0:00:17]} 38. Bxg6 {[%emt 0:00:30]} Rxd1+ {[%emt 0:00:30]} 39. Bb1 {[%emt 0:00:12]} Rdd7 40. a3 {[%emt 0:01:26]} Kg8 {[%emt 0:04:41]} 41. b4 {[%emt 0:00:30]} Rxg4 {[%emt 0:00:00]} 42. Bxh7+ {[%emt 0:00:00]} Kf8 {[%emt 0:00:00]} 43. Bf5 {[%emt 0:00:00]} Rg1+ {[%emt 0:00:00]} 44. Kb2 {[%emt 0:00:00]} Rdg7 {[%emt 0:00:00]} 45. Rh8+ {[%emt 0:00:00]} Rg8 {[%emt 0:00:00]} 46. Rxg8+ {[%emt 0:00:00]} Kxg8 {[%emt 0:00:00]} 47. Be6+ {[%emt 0:00:00]} Kf8 {[%emt 0:00:00]} 48. Bd5 {[%emt 0:00:00]} Rg7 {[%emt 0:00:00]} 49. Rh8+ {[%emt 0:00:00]} Ke7 {[%emt 0:00:00]} 50. Bxb7 {[%emt 0:00:00]} Ke6 {[%emt 0:00:00]} 51. Bxa6 {[%emt 0:00:00]} Kd7 {[%emt 0:00:00]} 52. Bb5+ {[%emt 0:00:00]} Kc7 {[%emt 0:00:00]} 53. Rf8 {[%emt 0:00:00]} Rg2+ {[%emt 0:00:00]} 54. Kb3 {[%emt 0:00:00]} Rf2 {[%emt 0:00:00]} 55. Rf7+ {[%emt 0:00:00]} Kd8 {[%emt 0:00:00]} 56. c6 {[%emt 0:00:00]} Rf3+ {[%emt 0:00:00]} 57. Kc4 {[%emt 0:00:00]} Rxa3 {[%emt 0:00:00]} 58. c7+ {[%emt 0:00:00]} Kc8 {[%emt 0:00:00]} 59. Kc5 {[%emt 0:00:00]} Ra7 {[%emt 0:00:00]} 60. Bd7+ {[%emt 0:00:00]} Kxc7 {[%emt 0:00:00]} 61. Bc8+ {[%emt 1:20:45]} Kb8 {[%emt 1:26:20]} 62. Rxa7 {[%emt 0:00:25]} Kxa7 {[%emt 0:00:30]} 63. Bd7 {[%emt 0:00:30]} f5 {[%emt 0:03:43]} 64. Bxf5 {[%emt 0:00:20]} Kb8 65. Be4 {[%emt 0:00:13]} Ka7 {[%emt 0:01:01]} 66. b5 {[%emt 0:00:30]} Kb8 {[%emt 0:00:07]} 67. Bd5 {[%emt 0:00:15]} Ka7 {[%emt 0:00:30]} 68. Bc6 {[%emt 0:00:30]} Kb8 {[%emt 0:00:30]} 69. b6 {[%emt 0:15:57]} 1-0

[Event "GER-chT Youth Countries 2020"]
[Site "Berlin"]
[Date "2020.10.04"]
[Round "7"]
[White "Reich, Elisabeth"]
[Black "Lorenz, Veronika"]
[Result "1/2-1/2"]
[ECO "C44"]
[WhiteElo "1128"]
[BlackElo "1273"]
[Annotator "NA"]
[PlyCount "74"]
[EventDate "2020.09.30"]
[EventType "team-tourn"]
[EventRounds "7"]
[EventCountry "GER"]
[SourceTitle "playchess.com"]
[Source "ChessBase"]
[SourceQuality "1"]
[TimeControl "30/5400+30:0"]

1. e4 {[%emt 0:00:00]} e5 {[%emt 0:00:00]} 2. Nf3 {[%emt 0:00:00]} Nc6 {[%emt 0:00:00]} 3. d4 {[%emt 0:00:00]} exd4 {[%emt 0:00:04]} 4. c3 {[%emt 0:00:04]} d5 {[%emt 0:27:02]} 5. exd5 {[%emt 0:01:17]} Qxd5 {[%emt 0:00:12]} 6. cxd4 {[%emt 0:00:19]} Bf5 {[%emt 0:01:24]} 7. Nc3 {[%emt 0:00:27]} Qd7 {[%emt 0:01:47]} 8. Bb5 {[%emt 0:01:42]} a6 {[%emt 0:06:19]} 9. Ne5 {[%emt 0:01:59]} Qd6 {[%emt 0:08:35]} 10. Bxc6+ {[%emt 0:00:59]} bxc6 {[%emt 0:00:11]} 11. Qa4 {[%emt 0:01:02]} Ne7 {[%emt 0:05:13]} 12. O-O {[%emt 0:01:26]} f6 {[%emt 0:03:30]} 13. Nf3 {[%emt 0:01:14]} Kf7 {[%emt 0:02:43]} 14. Qb3+ {[%emt 0:00:54]} Nd5 {[%emt 0:02:44]} 15. Bf4 {[%emt 0:02:57]} Qd7 {[%emt 0:11:16]} 16. Nxd5 {[%emt 0:01:42]} Qxd5 {[%emt 0:01:25]} 17. Qxd5+ {[%emt 0:00:22]} cxd5 {[%emt 0:00:02]} 18. Bxc7 {[%emt 0:00:20]} Rc8 {[%emt 0:00:49]} 19. Ba5 {[%emt 0:00:18]} Bd6 {[%emt 0:04:03]} 20. Rac1 {[%emt 0:01:03]} Rc4 {[%emt 0:04:47]} 21. Rxc4 {[%emt 0:00:13]} dxc4 {[%emt 0:00:02]} 22. Nd2 {[%emt 0:00:38]} Bd3 {[%emt 0:00:26]} 23. Rc1 {[%emt 0:00:56]} Bf4 {[%emt 0:01:47]} 24. g3 {[%emt 0:00:31]} Bxd2 {[%emt 0:00:42]} 25. Bxd2 {[%emt 0:00:13]} Re8 {[%emt 0:01:49]} 26. b3 {[%emt 0:00:51]} Re2 {[%emt 0:00:17]} 27. Be3 {[%emt 0:00:26]} cxb3 {[%emt 0:01:03]} 28. axb3 {[%emt 0:00:15]} Rb2 {[%emt 0:00:18]} 29. Rc3 {[%emt 0:00:38]} Be4 {[%emt 0:01:06]} 30. Bc1 {[%emt 0:01:17]} Rb1 {[%emt 0:00:51]} 31. Kf1 {[%emt 1:30:56]} Bd5 {[%emt 1:30:48]} 32. Rc7+ {[%emt 0:01:43]} Kg6 {[%emt 0:00:27]} 33. Ke2 {[%emt 0:00:42]} Rxb3 {[%emt 0:01:33]} 34. Be3 {[%emt 0:00:13]} Rb7 {[%emt 0:01:18]} 35. Rxb7 {[%emt 0:00:14]} Bxb7 {[%emt 0:00:00]} 36. Bd2 {[%emt 0:00:09]} Kf5 {[%emt 0:00:44]} 37. h4 {[%emt 0:01:02]} Ke4 {[%emt 0:00:37]} 1/2-1/2

[Event "GER-chT Youth Countries 2020"]
[Site "Berlin"]
[Date "2020.10.04"]
[Round "7"]
[White "Richter, Johanna"]
[Black "Haug, Mara"]
[Result "0-1"]
[ECO "A56"]
[WhiteElo "1107"]
[BlackElo "1366"]
[Annotator "NA"]
[PlyCount "61"]
[EventDate "2020.09.30"]
[EventType "team-tourn"]
[EventRounds "7"]
[EventCountry "GER"]
[SourceTitle "playchess.com"]
[Source "ChessBase"]
[SourceQuality "1"]
[TimeControl "30/5400+30:0"]

1. d4 {[%emt 0:00:00]} Nf6 {[%emt 0:00:00]} 2. c4 {[%emt 0:00:00]} c5 {[%emt 0:00:04]} 3. Nf3 {[%emt 0:00:27]} cxd4 {[%emt 0:00:08]} 4. Nxd4 {[%emt 0:02:33]} e5 {[%emt 0:00:10]} 5. Nf3 {[%emt 0:03:09]} Nc6 {[%emt 0:01:00]} 6. Nc3 {[%emt 0:04:05]} Bc5 {[%emt 0:03:47]} 7. e3 {[%emt 0:03:49]} d6 {[%emt 0:03:33]} 8. b3 {[%emt 0:02:42]} Bb4 {[%emt 0:04:51]} 9. Bb2 {[%emt 0:00:49]} Ne4 {[%emt 0:00:25]} 10. Qc2 {[%emt 0:03:53]} Qa5 {[%emt 0:06:46]} 11. Rc1 {[%emt 0:12:10]} Bf5 {[%emt 0:12:53]} 12. Bd3 {[%emt 0:01:38]} Bxc3+ {[%emt 0:00:22]} 13. Bxc3 {[%emt 0:00:21]} Nxc3 {[%emt 0:01:45]} 14. O-O {[%emt 0:08:10]} Bxd3 {[%emt 0:01:57]} 15. Qxd3 {[%emt 0:00:17]} e4 {[%emt 0:01:28]} 16. Qxc3 {[%emt 0:38:00]} Qxc3 {[%emt 0:00:09]} 17. Rxc3 {[%emt 0:00:06]} exf3 {[%emt 0:03:56]} 18. gxf3 {[%emt 0:00:21]} O-O {[%emt 0:01:22]} 19. f4 {[%emt 0:01:59]} Rad8 {[%emt 0:01:02]} 20. Rd1 {[%emt 0:00:38]} Rd7 {[%emt 0:00:15]} 21. c5 {[%emt 0:00:15]} d5 {[%emt 0:01:14]} 22. Rcd3 {[%emt 0:00:25]} Ne7 {[%emt 0:01:15]} 23. e4 {[%emt 0:00:38]} Rfd8 {[%emt 0:00:48]} 24. Rd4 {[%emt 0:01:20]} Kf8 {[%emt 0:01:01]} 25. b4 {[%emt 0:00:49]} Nc6 {[%emt 0:02:56]} 26. Rxd5 {[%emt 0:03:33]} Rxd5 {[%emt 0:01:38]} 27. exd5 {[%emt 0:00:58]} Nxb4 {[%emt 0:00:29]} 28. d6 Na6 {[%emt 0:01:08]} 29. Rd5 {[%emt 0:00:51]} f6 {[%emt 0:02:52]} 30. h4 {[%emt 0:02:30]} Kf7 {[%emt 0:01:13]} 31. f5 {[%emt 1:30:34]} 0-1

[Event "GER-chT Youth Countries 2020"]
[Site "Berlin"]
[Date "2020.10.04"]
[Round "7"]
[White "Zimmer, Tim"]
[Black "Pohle, Saskia"]
[Result "0-1"]
[ECO "C55"]
[WhiteElo "1025"]
[BlackElo "1749"]
[Annotator "NA"]
[PlyCount "88"]
[EventDate "2020.09.30"]
[EventType "team-tourn"]
[EventRounds "7"]
[EventCountry "GER"]
[SourceTitle "playchess.com"]
[Source "ChessBase"]
[SourceQuality "1"]
[TimeControl "30/5400+30:0"]

1. e4 {[%emt 0:00:00]} e5 {[%emt 0:00:00]} 2. Nf3 {[%emt 0:00:00]} Nc6 {[%emt 0:00:00]} 3. Bc4 {[%emt 0:00:00]} Nf6 {[%emt 0:00:00]} 4. d3 {[%emt 0:00:00]} Be7 {[%emt 0:00:00]} 5. O-O {[%emt 0:00:11]} O-O {[%emt 0:00:00]} 6. Re1 {[%emt 0:00:20]} d6 {[%emt 0:00:12]} 7. a4 {[%emt 0:01:35]} Be6 {[%emt 0:01:58]} 8. Nbd2 {[%emt 0:01:29]} Qd7 {[%emt 0:01:18]} 9. Bxe6 {[%emt 0:02:05]} Qxe6 {[%emt 0:00:43]} 10. Nc4 Rfe8 {[%emt 0:02:05]} 11. Bd2 {[%emt 0:04:53]} Rad8 {[%emt 0:02:09]} 12. Bc3 {[%emt 0:01:13]} Bf8 {[%emt 0:01:22]} 13. Qd2 {[%emt 0:04:35]} a6 {[%emt 0:02:29]} 14. a5 {[%emt 0:00:57]} g6 {[%emt 0:03:29]} 15. h3 {[%emt 0:09:41]} Bg7 {[%emt 0:00:22]} 16. b3 {[%emt 0:10:41]} Rd7 {[%emt 0:04:53]} 17. Re2 {[%emt 0:14:15]} Nh5 {[%emt 0:00:36]} 18. d4 {[%emt 0:05:16]} Qe7 {[%emt 0:01:36]} 19. d5 {[%emt 0:00:48]} Na7 {[%emt 0:00:58]} 20. Qe3 {[%emt 0:02:58]} Nf4 {[%emt 0:02:06]} 21. Ree1 {[%emt 0:01:45]} Nb5 {[%emt 0:00:31]} 22. Bb2 {[%emt 0:00:15]} Qf8 {[%emt 0:04:02]} 23. Qd2 {[%emt 0:02:51]} Bh6 {[%emt 0:04:10]} 24. Ne3 {[%emt 0:00:50]} f5 {[%emt 0:02:30]} 25. exf5 {[%emt 0:06:01]} gxf5 {[%emt 0:00:09]} 26. c4 {[%emt 0:00:11]} Na7 {[%emt 0:00:47]} 27. Qc2 {[%emt 0:00:42]} Rg7 {[%emt 0:09:26]} 28. Kh1 {[%emt 0:02:28]} Kh8 {[%emt 0:06:01]} 29. Qxf5 {[%emt 0:04:43]} Qg8 {[%emt 0:01:04]} 30. Ng4 {[%emt 0:03:27]} Rf8 {[%emt 0:01:37]} 31. Nxh6 {[%emt 1:33:48]} Rxf5 {[%emt 1:30:07]} 32. Nxg8 {[%emt 0:00:10]} Kxg8 {[%emt 0:00:35]} 33. Rad1 {[%emt 0:14:53]} Nxg2 {[%emt 0:03:12]} 34. Rg1 {[%emt 0:00:31]} Rxf3 {[%emt 0:00:55]} 35. Rxg2 {[%emt 0:00:09]} Rxg2 {[%emt 0:00:59]} 36. Kxg2 {[%emt 0:00:07]} Rxb3 {[%emt 0:00:07]} 37. Rd2 {[%emt 0:00:08]} Rb4 {[%emt 0:00:41]} 38. Rc2 {[%emt 0:01:14]} Ra4 {[%emt 0:00:14]} 39. Kf3 {[%emt 0:00:06]} Rxa5 {[%emt 0:00:51]} 40. Ke4 {[%emt 0:00:18]} c6 {[%emt 0:04:11]} 41. Bxe5 {[%emt 0:02:17]} dxe5 {[%emt 0:01:25]} 42. Kxe5 {[%emt 0:00:19]} cxd5 {[%emt 0:00:21]} 43. cxd5 {[%emt 0:00:08]} Nc6+ {[%emt 0:01:02]} 44. Kf6 {[%emt 0:02:05]} Rxd5 {[%emt 0:00:11]} 0-1

[Event "GER-chT Youth Countries 2020"]
[Site "Berlin"]
[Date "2020.10.04"]
[Round "7"]
[White "Chassard, Cecilia"]
[Black "Khanbekyan, Nare"]
[Result "0-1"]
[ECO "B35"]
[WhiteElo "980"]
[BlackElo "1334"]
[Annotator "NA"]
[PlyCount "134"]
[EventDate "2020.09.30"]
[EventType "team-tourn"]
[EventRounds "7"]
[EventCountry "GER"]
[SourceTitle "playchess.com"]
[Source "ChessBase"]
[SourceQuality "1"]
[TimeControl "30/5400+30:0"]

1. e4 {[%emt 0:00:00]} c5 {[%emt 0:00:00]} 2. Nf3 {[%emt 0:00:00]} Nc6 {[%emt 0:00:00]} 3. d4 {[%emt 0:00:43]} cxd4 {[%emt 0:00:00]} 4. Nxd4 {[%emt 0:00:09]} Nf6 {[%emt 0:00:07]} 5. Nc3 {[%emt 0:00:35]} g6 {[%emt 0:00:12]} 6. Bc4 {[%emt 0:00:20]} Bg7 {[%emt 0:00:11]} 7. Be3 {[%emt 0:00:19]} O-O {[%emt 0:00:15]} 8. Qd2 {[%emt 0:00:05]} Ng4 {[%emt 0:00:24]} 9. Nxc6 {[%emt 0:02:09]} bxc6 {[%emt 0:00:39]} 10. Bd4 {[%emt 0:03:08]} Ne5 {[%emt 0:07:12]} 11. Bb3 {[%emt 0:02:25]} d6 {[%emt 0:04:22]} 12. O-O-O c5 {[%emt 0:02:57]} 13. Bxe5 {[%emt 0:02:58]} Bxe5 {[%emt 0:00:23]} 14. f4 {[%emt 0:02:31]} Bd4 {[%emt 0:02:24]} 15. Ne2 {[%emt 0:02:40]} Bg7 {[%emt 0:01:02]} 16. e5 {[%emt 0:01:43]} Bb7 {[%emt 0:02:55]} 17. exd6 {[%emt 0:01:51]} exd6 {[%emt 0:01:18]} 18. Qxd6 {[%emt 0:01:10]} Qxd6 {[%emt 0:00:10]} 19. Rxd6 {[%emt 0:00:07]} Bxg2 {[%emt 0:00:18]} 20. Rg1 {[%emt 0:00:39]} Be4 {[%emt 0:01:57]} 21. Bd5 {[%emt 0:00:57]} Bxd5 {[%emt 0:01:41]} 22. Rxd5 {[%emt 0:00:08]} Rfe8 {[%emt 0:02:06]} 23. Nc3 {[%emt 0:01:03]} Rab8 {[%emt 0:01:26]} 24. Rxc5 {[%emt 0:00:57]} Bd4 {[%emt 0:00:06]} 25. Rgg5 {[%emt 0:01:08]} Be3+ {[%emt 0:03:04]} 26. Kd1 {[%emt 0:01:25]} Bxc5 {[%emt 0:00:15]} 27. Rxc5 {[%emt 0:00:10]} Rbd8+ {[%emt 0:00:06]} 28. Rd5 {[%emt 0:00:26]} Rxd5+ {[%emt 0:00:12]} 29. Nxd5 {[%emt 0:00:07]} Rd8 {[%emt 0:00:11]} 30. c4 {[%emt 0:00:05]} f5 {[%emt 0:01:07]} 31. Ke2 {[%emt 1:30:52]} Kf7 {[%emt 1:30:30]} 32. b3 {[%emt 0:00:41]} h6 {[%emt 0:00:59]} 33. Ke3 {[%emt 0:04:45]} g5 {[%emt 0:00:37]} 34. h3 {[%emt 0:00:51]} Re8+ {[%emt 0:00:43]} 35. Kf3 {[%emt 0:00:20]} Re1 {[%emt 0:00:40]} 36. c5 {[%emt 0:00:42]} Ke6 {[%emt 0:00:54]} 37. Nc7+ {[%emt 0:00:58]} Kd7 {[%emt 0:00:28]} 38. Na6 {[%emt 0:00:18]} Rf1+ {[%emt 0:00:57]} 39. Kg2 {[%emt 0:00:35]} Rxf4 {[%emt 0:00:27]} 40. b4 {[%emt 0:00:24]} Rc4 {[%emt 0:01:00]} 41. a4 {[%emt 0:00:21]} Kc8 {[%emt 0:01:16]} 42. a5 {[%emt 0:01:11]} Kb7 {[%emt 0:01:10]} 43. b5 {[%emt 0:01:03]} h5 {[%emt 0:00:34]} 44. c6+ {[%emt 0:00:41]} Kc8 {[%emt 0:00:54]} 45. c7 {[%emt 0:00:21]} Rxc7 {[%emt 0:02:06]} 46. Nxc7 {[%emt 0:00:14]} Kxc7 {[%emt 0:00:04]} 47. Kg3 {[%emt 0:01:56]} Kd6 {[%emt 0:00:12]} 48. Kf3 {[%emt 0:00:28]} Kc5 {[%emt 0:00:09]} 49. b6 {[%emt 0:00:23]} axb6 {[%emt 0:00:07]} 50. a6 {[%emt 0:00:14]} Kc6 {[%emt 0:00:16]} 51. a7 {[%emt 0:00:08]} Kb7 {[%emt 0:00:04]} 52. a8=Q+ {[%emt 0:00:24]} Kxa8 {[%emt 0:00:06]} 53. Ke3 {[%emt 0:00:18]} b5 {[%emt 0:00:19]} 54. Kd2 {[%emt 0:00:21]} g4 {[%emt 0:00:08]} 55. hxg4 {[%emt 0:00:18]} fxg4 {[%emt 0:00:05]} 56. Kd1 {[%emt 0:01:29]} g3 {[%emt 0:00:06]} 57. Ke1 {[%emt 0:00:12]} b4 {[%emt 0:00:12]} 58. Kd1 {[%emt 0:00:16]} g2 {[%emt 0:00:05]} 59. Ke1 {[%emt 0:00:10]} g1=Q+ {[%emt 0:00:08]} 60. Ke2 {[%emt 0:00:17]} Qg3 {[%emt 0:00:16]} 61. Kd1 {[%emt 1:30:22]} Qf2 {[%emt 1:30:14]} 62. Kc1 {[%emt 0:00:55]} Qe2 {[%emt 0:00:10]} 63. Kb1 {[%emt 0:00:12]} Qd2 {[%emt 0:00:22]} 64. Ka1 {[%emt 0:00:10]} h4 {[%emt 0:00:19]} 65. Kb1 {[%emt 0:00:10]} h3 {[%emt 0:00:13]} 66. Ka1 {[%emt 0:00:05]} h2 {[%emt 0:00:05]} 67. Kb1 {[%emt 0:00:03]} h1=R# {[%emt 0:00:07]} 0-1